bitfinex-derivatives/quotes_SOLF0:USTF0_20250614
["timestamp","ask_amount","ask_price","bid_price","bid_amount"]
[1749894410710,9.0250602,145.32,145.31,33.66]
[1749894419623,6.8782,145.32,145.31,33.66]
[1749894421530,6.92812413,145.33,145.31,33.66]
[1749894421729,0.05022413,145.33,145.31,33.66]
[1749894422837,6.8782,145.32,145.31,33.66]
[1749894423231,0.05022413,145.33,145.31,33.66]
[1749894423938,2.19708433,145.33,145.31,33.66]
[1749894424533,6.8782,145.32,145.31,33.66]
[1749894426932,6.92812413,145.33,145.31,33.66]
[1749894427327,0.05022413,145.33,145.31,33.66]
[1749894428839,6.8782,145.32,145.31,33.66]
[1749894435637,6.92812413,145.33,145.31,33.66]
[1749894435841,6.92812413,145.33,145.31,40.5384]
[1749894437747,0.05022413,145.33,145.31,33.66]
[1749894437954,86.69397064,145.38,145.32,2.1468602]
[1749894438141,86.69397064,145.38,145.34,2.1468602]
[1749894438344,6.8762,145.37,145.34,9.0237602]
[1749894438547,6.8762,145.37,145.35,33.66]
[1749894439050,0.04945783,145.37,145.35,40.5889445]
[1749894439254,0.04945783,145.37,145.35,35.8593047]
[1749894440555,0.04945783,145.37,145.36,6.8763]
[1749894442757,6.92525783,145.37,145.35,42.7360047]
[1749894442953,6.92525783,145.37,145.35,33.7124445]
[1749894444657,6.8763,145.36,145.35,33.7124445]
[1749894445348,9.0231602,145.36,145.35,33.7124445]
[1749894447353,6.8763,145.36,145.35,33.7124445]
[1749894452455,6.8777,145.33,145.32,33.64]
[1749894456954,6.8782,145.32,145.31,0.05078763]
[1749894467462,6.8782,145.32,145.31,8.763e-05]
[1749894469169,6.8815,145.25,145.24,8.54041711]
[1749894469371,6.8815,145.25,145.23,429.88]
[1749894470270,6.882,145.24,145.23,429.92745252]
[1749894470666,6.882,145.24,145.23,33.70745252]
[1749894472871,0.04701677,145.25,145.18,43.31365737]
[1749894472872,3.40548533,145.25,145.18,43.31365737]
[1749894473068,3.35846856,145.25,145.18,43.31365737]
[1749894473270,3.35951192,145.25,145.18,36.42915737]
[1749894473862,6.92966647,145.23,145.2,0.04840952]
[1749894474568,6.92966647,145.23,145.2,6.93210952]
[1749894474770,6.92966647,145.23,145.2,0.04840952]
[1749894475473,6.8831,145.22,145.2,0.04840952]
[1749894475674,0.04696647,145.23,145.2,0.04840952]
[1749894476366,6.8834,145.21,145.2,0.04840952]
[1749894476967,6.8831,145.22,145.2,0.04840952]
[1749894477870,6.8834,145.21,145.2,0.04840952]
[1749894478571,6.8831,145.22,145.2,0.04840952]
[1749894478978,6.8834,145.21,145.2,0.04840952]
[1749894479272,0.04696647,145.23,145.2,0.04840952]
[1749894479675,6.8832,145.22,145.2,0.04840952]
[1749894480478,6.8832,145.22,145.2,6.93220952]
[1749894480772,0.04696647,145.23,145.2,6.93220952]
[1749894481479,0.04696647,145.23,145.2,0.04840952]
[1749894482178,6.8834,145.21,145.2,0.04840952]
[1749894491791,6.8834,145.21,145.2,9.52e-06]
[1749894497284,9.03449129,145.21,145.2,9.52e-06]
[1749894498692,9.03449129,145.21,145.12,36.3455]
[1749894498693,2.15109129,145.19,145.12,36.3455]
[1749894498893,2.15109129,145.14,145.12,36.3455]
[1749894499094,6.8872,145.13,145.12,34.0]
[1749894500290,6.8876,145.12,145.11,80.04393185]
[1749894500489,10.25142155,145.12,145.11,80.04393185]
[1749894500792,6.8876,145.12,145.11,80.04393185]
[1749894501389,6.8873,145.13,145.11,80.04393185]
[1749894501590,0.05305101,145.14,145.11,80.04393185]
[1749894501790,6.8873,145.13,145.11,80.04393185]
[1749894501990,0.05305101,145.14,145.11,80.04393185]
[1749894502399,6.93985101,145.14,145.11,80.04393185]
[1749894502993,6.8874,145.13,145.11,80.04393185]
[1749894503181,0.05305101,145.14,145.11,80.04393185]
[1749894503385,3.36382155,145.13,145.11,80.04393185]
[1749894503593,6.8876,145.12,145.11,80.04393185]
[1749894505083,3.41687256,145.14,145.11,80.04393185]
[1749894505901,6.8876,145.12,145.11,80.04393185]
[1749894517805,6.8873,145.13,145.11,80.04393185]
[1749894518304,6.8876,145.12,145.11,80.04393185]
[1749894519095,0.05305101,145.14,145.11,80.04393185]
[1749894520205,6.8876,145.12,145.11,80.04393185]
[1749894521403,0.05305101,145.14,145.11,80.04393185]
[1749894521910,6.8876,145.12,145.11,80.04393185]
[1749894522602,6.8874,145.13,145.11,80.04393185]
[1749894523397,6.8876,145.12,145.11,80.04393185]
[1749894524203,6.8874,145.13,145.11,80.04393185]
[1749894524603,0.05305101,145.14,145.11,80.04393185]
[1749894525695,6.8875,145.13,145.11,80.04393185]
[1749894526302,6.8876,145.12,145.11,80.04393185]
[1749894538513,10.25360381,145.12,145.11,23.03818359]
[1749894538704,10.25360381,145.12,145.11,12.52848359]
[1749894539308,9.0413699,145.12,145.11,12.52848359]
[1749894540410,6.8876,145.12,145.11,12.52848359]
[1749894541311,0.05305101,145.14,145.11,12.52848359]
[1749894541814,6.8876,145.12,145.11,12.52848359]
[1749894542814,6.8874,145.13,145.11,12.52848359]
[1749894543015,0.05305101,145.14,145.11,12.52848359]
[1749894543716,6.8876,145.13,145.11,12.52848359]
[1749894546117,6.8876,145.12,145.11,12.52848359]
[1749894546318,0.05305101,145.14,145.11,12.52848359]
[1749894546818,6.8875,145.13,145.11,12.52848359]
[1749894547017,0.05305101,145.14,145.11,12.52848359]
[1749894547817,6.8876,145.12,145.11,12.52848359]
[1749894548123,10.25123076,145.12,145.11,12.52848359]
[1749894554419,10.25123076,145.12,145.11,1.14388359]
[1749894554626,6.8898,145.08,145.05,36.82]
[1749894555227,3.36363076,145.1,145.05,36.82]
[1749894555621,0.05144276,145.09,145.06,0.05061054]
[1749894555827,6.8895,145.08,145.06,0.05061054]
[1749894556028,0.05144276,145.09,145.06,0.05061054]
[1749894556230,3.41507352,145.09,145.06,0.05061054]
[1749894556441,0.05144276,145.09,145.06,0.05061054]
[1749894556928,6.89,145.07,145.06,0.05061054]
[1749894559740,6.8898,145.08,145.06,0.05061054]
[1749894560034,6.8898,145.08,145.07,36.82]
[1749894567240,6.89,145.07,145.06,0.05061054]
[1749894567435,6.89,145.07,145.06,36.91061054]
[1749894570940,0.05144276,145.09,145.06,36.91061054]
[1749894571440,0.05144276,145.09,145.07,6.8899]
[1749894572240,0.05144276,145.09,145.08,6.8895]
[1749894574842,6.8874,145.13,145.1,6.8882]
[1749894575047,6.8874,145.13,145.11,36.86]
[1749894575234,3.36363076,145.15,145.11,36.86]
[1749894575439,6.8876,145.12,145.11,36.86]
[1749894577050,6.8881,145.11,145.1,0.05076684]
[1749894580551,6.8899,145.08,145.06,36.86]
[1749894580754,3.36363076,145.11,145.06,36.86]
[1749894581444,3.36363076,145.11,145.06,43.7501]
[1749894581445,6.8893,145.09,145.06,43.7501]
[1749894581647,6.9331046,145.09,145.06,43.80208124]
[1749894582343,6.8897,145.08,145.06,36.91198124]
[1749894583555,6.89,145.07,145.06,36.91198124]
[1749894583854,0.0438046,145.09,145.06,36.91198124]
[1749894584453,6.8898,145.08,145.06,43.80248124]
[1749894584754,6.8898,145.08,145.06,36.91198124]
[1749894584955,0.0438046,145.09,145.06,36.91198124]
[1749894585150,6.89,145.07,145.06,36.91198124]
[1749894588158,0.0438046,145.09,145.06,36.91198124]
[1749894588858,0.0438046,145.09,145.07,6.8897]
[1749894589950,0.0438046,145.09,145.08,6.8895]
[1749894590454,0.0438046,145.09,145.06,45.45239835]
[1749894591252,0.0438046,145.09,145.08,6.8895]
[1749894593764,0.0438046,145.09,145.08,15.42991711]
[1749894594357,0.0438046,145.09,145.08,20.05441711]
[1749894596271,0.0438046,145.09,145.08,11.514]
[1749894598466,3.36363076,145.16,145.12,6.8875]
[1749894598671,3.36363076,145.18,145.12,36.2]
[1749894598966,6.8864,145.15,145.13,6.8869]
[1749894599357,6.93858326,145.15,145.13,6.93986456]
[1749894599558,6.8867,145.14,145.13,0.05296456]
[1749894599758,10.25033076,145.14,145.13,0.05296456]
[1749894600574,10.25033076,145.14,145.13,0.00848404]
[1749894603570,6.8867,145.14,145.13,0.00848404]
[1749894603758,10.25033076,145.14,145.13,0.00848404]
[1749894604565,6.8867,145.14,145.13,0.00848404]
[1749894609670,6.8867,145.14,145.13,36.20848404]
[1749894611775,0.05218326,145.15,145.13,43.09548404]
[1749894612173,6.93848326,145.15,145.13,43.09548404]
[1749894612374,0.05218326,145.15,145.13,36.20848404]
[1749894612976,0.05218326,145.15,145.13,43.09548404]
[1749894613278,0.05218326,145.15,145.13,36.20848404]
[1749894613679,0.05218326,145.15,145.14,6.8867]
[1749894613871,0.05218326,145.15,145.13,36.20848404]
[1749894614178,50.36411218,145.14,145.09,8.54041711]
[1749894614480,3.36411218,145.11,145.03,8.54041711]
[1749894614682,3.36698588,145.08,145.03,8.54041711]
[1749894614872,3.36698588,145.08,145.03,15.43221711]
[1749894615273,2.15492716,145.06,145.04,0.04394122]
[1749894615567,2.20505873,145.06,145.05,36.18]
[1749894617379,0.05013157,145.06,145.05,36.18]
[1749894618382,6.94063157,145.06,145.05,36.18]
[1749894618576,0.05013157,145.06,145.05,36.18]
[1749894618882,0.05013157,145.06,145.05,43.071]
[1749894619776,10.25569885,145.11,145.08,6.8891]
[1749894620281,3.36739885,145.11,145.05,36.18]
[1749894620481,6.8888,145.1,145.07,6.8897]
[1749894620884,6.93932061,145.1,145.07,6.9355028]
[1749894621786,6.8891,145.09,145.07,6.9355028]
[1749894622086,6.8891,145.09,145.07,0.0458028]
[1749894622388,6.8893,145.09,145.07,0.0458028]
[1749894623190,6.8893,145.09,145.07,6.9358028]
[1749894624485,6.8893,145.09,145.07,0.0458028]
[1749894625488,6.8893,145.09,145.07,6.9358028]
[1749894625890,3.41791946,145.1,145.07,0.0458028]
[1749894626785,6.8894,145.09,145.07,0.0458028]
[1749894626984,3.41791946,145.1,145.07,0.0458028]
[1749894627490,6.8895,145.08,145.07,0.0458028]
[1749894635295,10.25689885,145.08,145.07,0.0458028]
[1749894636091,6.8895,145.08,145.07,0.0458028]
[1749894645004,10.25689885,145.08,145.07,0.0458028]
[1749894648508,10.25689885,145.08,145.07,2.8e-06]
[1749894653012,6.8895,145.08,145.07,2.8e-06]
[1749894653214,10.25689885,145.08,145.07,2.8e-06]
[1749894661413,9.04445483,145.08,145.07,2.8e-06]
[1749894663314,6.8895,145.08,145.07,2.8e-06]
[1749894671236,6.8919,145.04,145.02,35.62]
[1749894671430,3.36646429,145.06,145.02,35.62]
[1749894671938,6.8919,145.03,145.02,35.62]
[1749894672525,6.94418875,145.04,145.02,35.62]
[1749894672930,0.05248875,145.04,145.02,35.62]
[1749894673124,0.05248875,145.04,145.03,6.8919]
[1749894673529,6.891,145.05,145.02,42.5122]
[1749894674437,6.94332409,145.05,145.02,42.5122]
[1749894674629,0.05232409,145.05,145.03,6.8918]
[1749894675333,6.94342409,145.05,145.02,51.0785669]
[1749894675729,6.8915,145.04,145.02,51.0785669]
[1749894675928,6.8915,145.04,145.02,42.5121]
[1749894676429,6.8916,145.04,145.02,6.8921]
[1749894676629,6.8916,145.04,145.03,35.62]
[1749894676825,0.05232409,145.05,145.03,35.62]
[1749894676826,6.94362409,145.05,145.03,42.5119]
[1749894677838,6.94362409,145.05,145.03,35.62]
[1749894678038,6.8916,145.04,145.02,6.8921]
[1749894678234,6.8916,145.04,145.03,35.62]
[1749894679636,6.94352409,145.05,145.03,35.62]
[1749894679936,6.94352409,145.05,145.03,42.5118]
[1749894680140,6.94342409,145.05,145.03,35.62]
[1749894681035,6.94342409,145.05,145.03,42.5117]
[1749894681244,0.05232409,145.05,145.03,35.62]
[1749894681837,0.05232409,145.05,145.04,6.8914]
[1749894682038,0.05232409,145.05,145.03,35.62]
[1749894682443,6.94332409,145.05,145.03,42.5116]
[1749894682743,6.94332409,145.05,145.03,35.62]
[1749894683131,6.8914,145.04,145.03,35.62]
[1749894685342,9.04670786,145.04,145.03,35.62]
[1749894686643,6.8914,145.04,145.03,35.62]
[1749894687538,2.20763195,145.05,145.03,35.62]
[1749894687740,0.05232409,145.05,145.03,35.62]
[1749894688136,0.05232409,145.05,145.03,42.5116]
[1749894689139,0.05232409,145.05,145.03,42.5115]
[1749894689448,6.94332409,145.05,145.03,42.5115]
[1749894689846,0.05232409,145.05,145.04,6.8914]
[1749894690346,2.15530786,145.08,145.06,6.8902]
[1749894690540,2.15530786,145.08,145.03,44.1864669]
[1749894690738,6.8908,145.06,145.03,44.1864669]
[1749894691135,6.8908,145.06,145.03,51.0781669]
[1749894691341,6.93500454,145.06,145.03,51.12967591]
[1749894691649,6.891,145.05,145.03,51.12967591]
[1749894692239,9.0903124,145.06,145.03,51.12967591]
[1749894693348,6.891,145.05,145.03,51.12967591]
[1749894693546,0.04420454,145.06,145.04,6.8912]
[1749894694044,6.93490454,145.06,145.04,6.8912]
[1749894694251,0.04420454,145.06,145.05,6.891]
[1749894694442,0.04420454,145.06,145.03,44.23797591]
[1749894694645,0.04420454,145.06,145.03,46.39328377]
[1749894695250,0.04420454,145.06,145.03,44.23797591]
[1749894696143,6.891,145.05,145.03,42.56310901]
[1749894698148,2.1995124,145.06,145.03,42.56310901]
[1749894698149,6.8914,145.04,145.03,0.05150901]
[1749894698350,6.8914,145.04,145.03,35.39150901]
[1749894702051,9.04670786,145.04,145.03,35.39150901]
[1749894703056,6.8914,145.04,145.03,35.39150901]
[1749894703458,9.04660786,145.05,145.03,35.39150901]
[1749894703851,9.04660786,145.05,145.03,42.28340901]
[1749894704053,9.04640786,145.05,145.03,35.39150901]
[1749894705554,0.04420454,145.06,145.03,35.39150901]
[1749894705759,2.1995124,145.06,145.03,35.39150901]
[1749894706260,6.8914,145.04,145.03,35.39150901]
[1749894707058,6.8914,145.04,145.03,0.05150901]
[1749894707252,6.8914,145.04,145.03,35.39150901]
[1749894709258,9.04670786,145.04,145.03,0.05150901]
[1749894711257,6.8914,145.04,145.03,0.05150901]
[1749894720269,0.04420454,145.06,145.03,0.05150901]
[1749894720650,6.8913,145.05,145.03,0.05150901]
[1749894721461,6.93500454,145.06,145.03,0.05150901]
[1749894721765,6.93500454,145.06,145.04,34.98]
[1749894722464,0.04420454,145.06,145.04,34.98]
[1749894723664,6.93490454,145.06,145.04,41.8712]
[1749894723863,6.93490454,145.06,145.04,34.98]
[1749894724269,6.891,145.05,145.03,6.94320901]
[1749894724462,6.891,145.05,145.04,34.98]
[1749894724657,0.04420454,145.06,145.04,34.98]
[1749894725762,6.93500454,145.06,145.04,41.8714]
[1749894725966,6.93500454,145.06,145.04,34.98]
[1749894727866,6.93500454,145.06,145.04,41.8714]
[1749894728059,0.04420454,145.06,145.04,34.98]
[1749894728571,0.04420454,145.06,145.04,41.8712]
[1749894730270,6.93480454,145.06,145.04,41.8712]
[1749894731868,0.04420454,145.06,145.04,41.8712]
[1749894732464,0.04420454,145.06,145.05,6.891]
[1749894733078,9.04302438,145.11,145.05,2.15462438]
[1749894733265,2.15462438,145.11,145.07,2.15462438]
[1749894733576,9.04292438,145.11,145.09,6.8888]
[1749894733769,6.8883,145.11,145.09,6.8888]
[1749894733959,0.04946641,145.11,145.09,9.08997003]
[1749894734159,0.04946641,145.11,145.09,2.20117003]
[1749894734771,0.04946641,145.11,145.1,6.8886]
[1749894735163,6.888,145.12,145.1,6.8886]
[1749894735359,3.3631956,145.16,145.09,0.04654565]
[1749894735870,6.887,145.14,145.11,6.8877]
[1749894736065,0.04849692,145.14,145.12,34.98]
[1749894736371,6.93559692,145.14,145.12,34.98]
[1749894737171,6.93559692,145.14,145.11,6.93895486]
[1749894737368,6.93559692,145.14,145.11,0.05125486]
[1749894737369,6.8876,145.12,145.11,0.05125486]
[1749894737580,3.41169252,145.14,145.11,35.01125486]
[1749894737773,6.8874,145.13,145.11,35.01125486]
[1749894738474,0.04849692,145.14,145.11,41.89915486]
[1749894739380,6.8872,145.13,145.11,35.01125486]
[1749894741667,6.8876,145.12,145.11,35.01125486]
[1749894742674,6.8874,145.13,145.11,35.01125486]
[1749894742870,0.04849692,145.14,145.11,35.01125486]
[1749894743373,6.93549692,145.14,145.11,41.89915486]
[1749894744378,6.8872,145.13,145.11,41.89915486]
[1749894748079,6.93539692,145.14,145.12,6.8874]
[1749894750673,6.8873,145.13,145.11,41.89915486]
[1749894751776,6.8876,145.12,145.11,35.01125486]
[1749894751983,0.04849692,145.14,145.11,35.01125486]
[1749894752488,6.8874,145.13,145.11,41.89935486]
[1749894754679,6.93539692,145.14,145.12,6.8876]
[1749894755387,6.8872,145.13,145.12,6.8876]
[1749894755791,0.04849692,145.14,145.12,6.8876]
[1749894756082,6.93539692,145.14,145.12,6.8876]
[1749894758487,6.8872,145.13,145.11,41.89915486]
[1749894759888,6.93539692,145.14,145.12,6.8876]
[1749894761183,0.04849692,145.14,145.13,6.8872]
[1749894761389,0.04849692,145.14,145.11,35.01125486]
[1749894761591,6.93519692,145.14,145.12,6.8873]
[1749894761789,0.04849692,145.14,145.11,35.01125486]
[1749894762591,0.04849692,145.14,145.12,6.8876]
[1749894763492,0.04849692,145.14,145.13,6.8872]
[1749894765387,3.3631956,145.19,145.15,6.8859]
[1749894765589,3.3631956,145.19,145.15,34.84]
[1749894765590,6.8853,145.18,145.15,34.84]
[1749894765986,6.8853,145.18,145.15,41.7259]
[1749894766383,6.93257199,145.18,145.15,41.76968973]
[1749894766891,6.93257199,145.18,145.16,6.8856]
[1749894770290,6.93257199,145.18,145.15,41.76978973]
[1749894770895,6.93257199,145.18,145.16,6.8857]
[1749894771495,0.04727199,145.18,145.17,6.8853]
[1749894771795,3.3631956,145.22,145.15,34.88378973]
[1749894772500,3.3631956,145.23,145.18,6.8846]
[1749894772792,0.04887952,145.22,145.19,34.89053492]
[1749894772995,6.8841,145.2,145.19,34.89049572]
[1749894780996,6.8841,145.2,145.19,0.05049572]
[1749894781201,12.33802522,145.2,145.19,0.05049572]
[1749894784404,12.33802522,145.2,145.12,403.4872]
[1749894784405,6.8864,145.15,145.13,6.8869]
[1749894784604,6.8864,145.15,145.14,34.74]
[1749894786205,6.93534202,145.16,145.14,34.74]
[1749894786405,0.04934202,145.16,145.14,34.74]
[1749894787711,6.8862,145.15,145.14,34.74]
[1749894798014,9.03834863,145.15,145.14,34.74]
[1749894799029,6.8867,145.14,145.13,0.04931984]
[1749894799209,6.8867,145.14,145.13,34.78931984]
[1749894800811,9.03874863,145.15,145.13,34.78931984]
[1749894801012,2.15214863,145.15,145.13,34.78931984]
[1749894801716,6.8867,145.14,145.13,34.78931984]
[1749894805313,9.03884863,145.14,145.13,34.78931984]
[1749894806425,6.8867,145.14,145.13,34.78931984]
[1749894806617,9.03884863,145.14,145.13,34.78931984]
[1749894811628,6.8867,145.14,145.13,34.78931984]
[1749894813523,6.8864,145.15,145.13,34.78931984]
[1749894813715,9.03854863,145.15,145.13,34.78931984]
[1749894814533,6.8867,145.14,145.13,34.78931984]
[1749894834245,12.33770209,145.14,145.13,34.78931984]
[1749894834951,6.8867,145.14,145.13,34.78931984]
[1749894835957,12.3375843,145.14,145.13,34.78931984]
[1749894837050,6.8867,145.14,145.13,34.78931984]
[1749894838862,12.33733781,145.14,145.13,34.78931984]
[1749894839261,14.48984613,145.14,145.13,0.04931984]
[1749894839760,14.49053422,145.14,145.13,0.04931984]
[1749894840859,6.8885,145.11,145.08,4.6885]
[1749894841063,2.15319641,145.09,145.07,431.12]
[1749894841860,2.20075888,145.09,145.07,431.16884641]
[1749894842062,6.89,145.08,145.07,431.16884641]
[1749894844366,6.89,145.08,145.07,34.52884641]
[1749894845368,9.04319641,145.08,145.07,0.04884641]
[1749894845672,6.8917,145.05,145.03,34.5]
[1749894845862,9.04489641,145.05,145.03,34.5]
[1749894846665,9.08912599,145.05,145.03,34.54611165]
[1749894847765,6.8919,145.04,145.03,34.54611165]
[1749894850273,9.04509641,145.04,145.03,34.54611165]
[1749894850968,9.04509641,145.04,145.03,0.04611165]
[1749894851875,9.04509641,145.04,145.0,34.5]
[1749894851876,6.8933,145.01,145.0,34.5]
[1749894852060,9.04649641,145.01,145.0,34.5]
[1749894852262,9.04649641,145.01,144.97,41.3948]
[1749894852671,0.04456874,145.0,144.98,6.94209765]
[1749894853466,6.93856874,145.0,144.98,0.04749765]
[1749894853664,2.15319641,144.99,144.98,0.00257798]
[1749894854062,6.8942,144.99,144.98,0.00257798]
[1749894854267,9.04739641,144.99,144.98,0.00257798]
[1749894855170,2.19776515,145.0,144.98,0.00257798]
[1749894855370,0.04456874,145.0,144.98,0.00257798]
[1749894855571,6.93866874,145.0,144.98,0.00257798]
[1749894858878,0.04456874,145.0,144.98,0.00257798]
[1749894859573,6.93856874,145.0,144.98,0.00257798]
[1749894859869,0.04456874,145.0,144.98,0.00257798]
[1749894860180,6.8942,144.99,144.98,0.00257798]
[1749894860874,3.4142431,145.0,144.98,0.00257798]
[1749894861375,0.04456874,145.0,144.98,0.00257798]
[1749894861978,6.93856874,145.0,144.98,0.00257798]
[1749894863177,0.04456874,145.0,144.98,0.00257798]
[1749894864272,6.93836874,145.0,144.98,0.00257798]
[1749894865384,6.8942,144.99,144.98,0.00257798]
[1749894866681,10.26387436,144.99,144.98,0.00257798]
[1749894867174,6.8942,144.99,144.98,0.00257798]
[1749894872683,10.26387436,144.99,144.98,0.00257798]
[1749894872982,6.8942,144.99,144.98,0.00257798]
[1749894877191,9.05142132,144.99,144.98,0.00257798]
[1749894878895,6.8942,144.99,144.98,0.00257798]
[1749894879091,9.05142132,144.99,144.98,0.00257798]
[1749894884197,6.8942,144.99,144.98,0.00257798]
[1749894884496,9.05142132,144.99,144.98,0.00257798]
[1749894886202,9.05200989,144.99,144.98,0.00257798]
[1749894886404,0.04456874,145.0,144.93,37.80915737]
[1749894886405,2.15780989,144.96,144.93,37.80915737]
[1749894886805,9.05370989,144.96,144.93,44.70595737]
[1749894887307,9.10376616,144.96,144.93,44.75304721]
[1749894887807,6.94595627,144.96,144.93,44.75304721]
[1749894888007,6.8962,144.95,144.93,44.75304721]
[1749894890307,6.8962,144.95,144.93,37.85624721]
[1749894891005,6.8962,144.95,144.93,44.75334721]
[1749894891307,6.8962,144.95,144.93,37.85624721]
[1749894892304,6.8962,144.95,144.93,44.75324721]
[1749894893511,6.8962,144.95,144.93,37.85624721]
[1749894894413,6.8962,144.95,144.93,44.75324721]
[1749894895211,6.8962,144.95,144.93,37.85624721]
[1749894895411,6.8966,144.94,144.93,37.85624721]
[1749894895709,2.20780038,144.96,144.93,37.85624721]
[1749894895915,6.8964,144.95,144.93,44.75324721]
[1749894897422,6.8966,144.94,144.93,37.85624721]
[1749894900620,6.8964,144.95,144.93,37.85624721]
[1749894900819,2.20780038,144.96,144.93,37.85624721]
[1749894901221,6.8965,144.95,144.93,37.85624721]
[1749894901724,6.8965,144.95,144.93,44.75314721]
[1749894901917,0.05005627,144.96,144.93,40.01399132]
[1749894902420,0.05005627,144.96,144.94,6.8963]
[1749894903012,6.94595627,144.96,144.94,6.8963]
[1749894903325,0.05005627,144.96,144.93,44.75314721]
[1749894904022,6.8961,144.95,144.93,44.75314721]
[1749894905123,6.94595627,144.96,144.93,37.85624721]
[1749894905826,6.94595627,144.96,144.93,44.75294721]
[1749894906325,6.94595627,144.96,144.94,2.15774411]
[1749894906326,0.05005627,144.96,144.94,2.15774411]
[1749894906626,0.05005627,144.96,144.95,6.8961]
[1749894908725,0.05005627,144.96,144.94,6.8964]
[1749894909623,0.05005627,144.96,144.93,40.01399132]
[1749894910227,0.05005627,144.96,144.94,6.8966]
[1749894910932,6.94575627,144.96,144.94,6.8966]
[1749894911324,0.05005627,144.96,144.95,9.05384411]
[1749894912335,9.05164411,145.0,144.95,2.15774411]
[1749894912535,35.1,145.03,144.95,2.15774411]
[1749894912737,9.05194411,145.0,144.95,2.15774411]
[1749894913031,2.15774411,145.0,144.97,6.895]
[1749894913234,6.8945,144.99,144.97,6.94691446]
[1749894916042,6.94067836,145.0,144.98,6.8947]
[1749894916236,2.20442247,145.0,144.97,0.05191446]
[1749894916840,6.8946,144.99,144.97,6.94691446]
[1749894918640,6.8947,144.98,144.97,0.05191446]
[1749894920342,9.05244411,144.98,144.97,0.05191446]
[1749894920645,6.8947,144.98,144.97,0.05191446]
[1749894925238,9.05224411,144.99,144.97,0.05191446]
[1749894925447,9.05224411,144.99,144.97,6.94701446]
[1749894925646,2.15774411,144.99,144.97,0.05191446]
[1749894926043,6.8947,144.98,144.97,0.05191446]
[1749894928448,9.05150315,144.99,144.97,6.94711446]
[1749894929144,6.8947,144.98,144.97,0.05191446]
[1749894930446,9.05160315,144.99,144.97,6.94711446]
[1749894931141,6.8945,144.99,144.97,6.94711446]
[1749894942250,6.8947,144.98,144.97,0.05191446]
[1749894942750,6.8945,144.99,144.97,6.94711446]
[1749894943549,6.8947,144.98,144.97,6.94711446]
[1749894948056,2.20378151,145.0,144.97,0.05191446]
[1749894948358,0.04667836,145.0,144.97,0.05191446]
[1749894948561,0.04667836,145.0,144.99,6.8942]
[1749894948947,2.15589051,145.04,144.99,2.15589051]
[1749894949148,6.8926,145.03,145.01,6.8931]
[1749894949955,6.94032345,145.03,145.01,6.93919055]
[1749894950157,0.04772345,145.03,145.02,6.8928]
[1749894950959,6.94002345,145.03,145.01,6.93919055]
[1749894951861,6.94002345,145.03,145.01,0.04609055]
[1749894951862,6.8928,145.02,145.01,0.04609055]
[1749894957171,9.09621396,145.03,145.01,6.93939055]
[1749894958773,6.94032345,145.03,145.01,6.93939055]
[1749894958958,0.04772345,145.03,145.02,6.8928]
[1749894962174,6.94022345,145.03,145.01,6.93909055]
[1749894963770,6.8928,145.02,145.01,0.04609055]
[1749894964774,9.04869051,145.02,145.01,0.04609055]
[1749894966284,9.04959199,145.02,145.01,0.04609055]
[1749894969982,2.1562339,145.02,145.01,6.93939055]
[1749894970587,2.20395735,145.03,145.01,6.93939055]
[1749894970786,6.94022345,145.03,145.01,6.93939055]
[1749894970990,9.09645735,145.03,145.01,6.93939055]
[1749894971376,9.0490339,145.02,145.01,0.04609055]
[1749894973291,10.26284686,145.02,145.01,0.04609055]
[1749894973477,3.37004686,145.02,144.96,6.8954]
[1749894973681,3.37004686,145.0,144.95,34.56]
[1749894974587,6.94709255,144.99,144.96,6.9411305]
[1749894974984,0.05269255,144.99,144.96,0.0458305]
[1749894975181,0.05269255,144.99,144.97,6.8949]
[1749894976090,0.05269255,144.99,144.98,6.8947]
[1749894976690,3.37004686,145.04,145.01,6.8932]
[1749894977092,6.8926,145.03,145.01,6.8932]
[1749894977894,6.93672112,145.03,145.01,6.94445282]
[1749894982302,0.04412112,145.03,145.01,0.05125282]
[1749894982898,6.93662112,145.03,145.01,6.94455282]
[1749894983391,0.04412112,145.03,145.01,0.05125282]
[1749894983698,6.8928,145.02,145.01,0.05125282]
[1749894987092,6.93672112,145.03,145.01,0.05125282]
[1749894992005,6.8928,145.02,145.01,0.05125282]
[1749894992900,6.93682112,145.03,145.01,0.05125282]
[1749894993205,0.04412112,145.03,145.01,0.05125282]